[Event "November 21 Late 2023"]
[Site "https://www.chess.com"]
[Date "2023.11.21"]
[Round "5"]
[White "Freeeeeeeeeeeeeeeeee"]
[Black "Skaric, Djuro"]
[Result "0-1"]
[Board "133"]
[TimeControl "180+1"]
[BlackFideId "934569"]
[WhiteElo "2086"]
[BlackElo "2282"]
[BlackTeam "SRB"]
[WhiteClock "0:00:00"]
[BlackClock "0:01:15"]

1. e4 {[%clk 0:02:20]}  d6 {[%clk 0:03:00]} 2. Nf3 {[%clk 0:02:17]}  g6 {[%clk 0:03:01]} 3. Nc3 {[%clk 0:02:17]}  Bg7 {[%clk 0:03:02]} 4. Be2 {[%clk 0:02:18]}  Nf6 {[%clk 0:03:02]} 5. O-O {[%clk 0:02:17]}  O-O {[%clk 0:03:03]} 6. d3 {[%clk 0:02:17]}  Nc6 {[%clk 0:03:03]} 7. h3 {[%clk 0:02:18]}  e5 {[%clk 0:03:04]} 8. a3 {[%clk 0:02:18]}  h6 {[%clk 0:03:04]} 9. Be3 {[%clk 0:02:18]}  Nd7 {[%clk 0:03:05]} 10. Nd5 {[%clk 0:02:18]}  Kh7 {[%clk 0:03:04]} 11. c4 {[%clk 0:02:16]}  f5 {[%clk 0:03:04]} 12. Nd2 {[%clk 0:02:16]}  f4 {[%clk 0:03:04]} 13. Bg4 {[%clk 0:02:14]}  Qh4 {[%clk 0:02:55]} 14. g3 {[%clk 0:02:10]}  Qd8 {[%clk 0:02:49]} 15. gxf4 {[%clk 0:02:07]}  exf4 {[%clk 0:02:49]} 16. Bxf4 {[%clk 0:02:05]}  Nde5 {[%clk 0:02:49]} 17. Be2 {[%clk 0:02:04]}  Nd4 {[%clk 0:02:46]} 18. Bxe5 {[%clk 0:01:49]}  dxe5 {[%clk 0:02:42]} 19. Bg4 {[%clk 0:01:48]}  c6 {[%clk 0:02:38]} 20. Ne3 {[%clk 0:01:36]}  h5 {[%clk 0:02:38]} 21. Bxc8 {[%clk 0:01:33]}  Qxc8 {[%clk 0:02:38]} 22. Kh2 {[%clk 0:01:25]}  Bh6 {[%clk 0:02:37]} 23. Ng2 {[%clk 0:01:11]}  Qe6 {[%clk 0:02:29]} 24. f4 {[%clk 0:01:11]}  exf4 {[%clk 0:02:29]} 25. Nf3 {[%clk 0:01:10]}  Nxf3+ {[%clk 0:02:16]} 26. Qxf3 {[%clk 0:01:09]}  Rf7 {[%clk 0:02:15]} 27. b3 {[%clk 0:01:06]}  Raf8 {[%clk 0:02:14]} 28. d4 {[%clk 0:01:04]}  Bg7 {[%clk 0:02:14]} 29. Rad1 {[%clk 0:01:04]}  Qf6 {[%clk 0:02:09]} 30. e5 {[%clk 0:01:04]}  Qg5 {[%clk 0:02:08]} 31. e6 {[%clk 0:01:01]}  Re7 {[%clk 0:02:05]} 32. d5 {[%clk 0:01:02]}  Be5 {[%clk 0:02:00]} 33. Rfe1 {[%clk 0:00:55]}  cxd5 {[%clk 0:01:48]} 34. cxd5 {[%clk 0:00:46]}  Bd6 {[%clk 0:01:47]} 35. b4 {[%clk 0:00:34]}  Qh6 {[%clk 0:01:45]} 36. Rg1 {[%clk 0:00:14]}  g5 {[%clk 0:01:45]} 37. Qe4+ {[%clk 0:00:12]}  Qg6 {[%clk 0:01:35]} 38. Qxg6+ {[%clk 0:00:08]}  Kxg6 {[%clk 0:01:35]} 39. Nh4+ {[%clk 0:00:09]}  Kh6 {[%clk 0:01:35]} 40. Nf3 {[%clk 0:00:10]}  g4 {[%clk 0:01:34]} 41. hxg4 {[%clk 0:00:10]}  hxg4 {[%clk 0:01:28]} 42. Rxg4 {[%clk 0:00:10]}  Rg7 {[%clk 0:01:25]} 43. Rh4+ {[%clk 0:00:06]}  Kg6 {[%clk 0:01:25]} 44. Rg1+ {[%clk 0:00:07]}  Kf6 {[%clk 0:01:25]} 45. Rh6+ {[%clk 0:00:07]}  Kf5 {[%clk 0:01:22]} 46. Rxg7 {[%clk 0:00:06]}  Ke4 {[%clk 0:01:21]} 47. Ng5+ {[%clk 0:00:05]}  Ke3 {[%clk 0:01:19]} 48. Rf7 {[%clk 0:00:04]}  Rc8 {[%clk 0:01:18]} 49. Rh3+ {[%clk 0:00:03]}  Ke2 {[%clk 0:01:16]} 50. e7 {[%clk 0:00:00]}  f3+ {[%clk 0:01:15]} 0-1

[Event "November 21 Late 2023"]
[Site "https://www.chess.com"]
[Date "2023.11.21"]
[Round "5"]
[White "Akhayan, Ruben"]
[Black "katharinareinecke"]
[Result "1-0"]
[Board "134"]
[TimeControl "180+1"]
[WhiteFideId "204439"]
[WhiteElo "2141"]
[BlackElo "1988"]
[WhiteTeam "BEL"]
[WhiteClock "0:00:40"]
[BlackClock "0:00:03"]

1. e4 {[%clk 0:03:00]}  c6 {[%clk 0:02:59]} 2. d4 {[%clk 0:03:00]}  d5 {[%clk 0:02:59]} 3. exd5 {[%clk 0:03:00]}  cxd5 {[%clk 0:02:58]} 4. c4 {[%clk 0:03:01]}  Nf6 {[%clk 0:02:57]} 5. Nc3 {[%clk 0:03:01]}  e6 {[%clk 0:02:56]} 6. Nf3 {[%clk 0:03:01]}  Nc6 {[%clk 0:02:53]} 7. c5 {[%clk 0:02:57]}  Be7 {[%clk 0:02:46]} 8. Bd3 {[%clk 0:02:57]}  O-O {[%clk 0:02:46]} 9. O-O {[%clk 0:02:58]}  b6 {[%clk 0:02:43]} 10. Bb5 {[%clk 0:02:49]}  Bb7 {[%clk 0:02:35]} 11. Bxc6 {[%clk 0:02:49]}  Bxc6 {[%clk 0:02:35]} 12. Ne5 {[%clk 0:02:50]}  Rc8 {[%clk 0:02:24]} 13. b4 {[%clk 0:02:48]}  a5 {[%clk 0:02:13]} 14. a3 {[%clk 0:02:47]}  Bb7 {[%clk 0:01:53]} 15. Re1 {[%clk 0:02:41]}  Nd7 {[%clk 0:01:48]} 16. Bf4 {[%clk 0:02:36]}  Nxe5 {[%clk 0:01:46]} 17. Bxe5 {[%clk 0:02:37]}  f6 {[%clk 0:01:45]} 18. Bg3 {[%clk 0:02:36]}  bxc5 {[%clk 0:01:21]} 19. bxc5 {[%clk 0:02:35]}  Qd7 {[%clk 0:01:15]} 20. Qe2 {[%clk 0:02:32]}  e5 {[%clk 0:01:01]} 21. dxe5 {[%clk 0:02:30]}  Rxc5 {[%clk 0:00:54]} 22. e6 {[%clk 0:02:23]}  Qc8 {[%clk 0:00:50]} 23. Na4 {[%clk 0:02:14]}  Rc2 {[%clk 0:00:38]} 24. Qd3 {[%clk 0:02:11]}  Qc6 {[%clk 0:00:36]} 25. Qb3 {[%clk 0:01:45]}  d4 {[%clk 0:00:31]} 26. f3 {[%clk 0:01:29]}  Rc8 {[%clk 0:00:27]} 27. Rab1 {[%clk 0:01:22]}  Ba6 {[%clk 0:00:24]} 28. Nb6 {[%clk 0:01:18]}  Rb8 {[%clk 0:00:20]} 29. Bxb8 {[%clk 0:01:16]}  Bb7 {[%clk 0:00:17]} 30. Nd5 {[%clk 0:01:00]}  Qxd5 {[%clk 0:00:14]} 31. Qxc2 {[%clk 0:00:57]}  Bc5 {[%clk 0:00:13]} 32. Kh1 {[%clk 0:00:53]}  d3 {[%clk 0:00:13]} 33. Qd2 {[%clk 0:00:46]}  h6 {[%clk 0:00:10]} 34. Bg3 {[%clk 0:00:44]}  Qh5 {[%clk 0:00:03]} 35. Rxb7 {[%clk 0:00:40]} 1-0

[Event "November 21 Late 2023"]
[Site "https://www.chess.com"]
[Date "2023.11.21"]
[Round "5"]
[White "Dias, Joao Batista"]
[Black "Figorito, Nick"]
[Result "1-0"]
[Board "135"]
[TimeControl "180+1"]
[WhiteFideId "2108240"]
[BlackFideId "30923689"]
[WhiteElo "1907"]
[BlackElo "2381"]
[WhiteTeam "BRA"]
[BlackTeam "USA"]
[WhiteClock "0:02:04"]
[BlackClock "0:01:27"]

1. e4 {[%clk 0:02:51]}  e6 {[%clk 0:03:00]} 2. d4 {[%clk 0:02:51]}  d5 {[%clk 0:03:00]} 3. Nc3 {[%clk 0:02:51]}  Bb4 {[%clk 0:03:01]} 4. a3 {[%clk 0:02:50]}  Bxc3+ {[%clk 0:03:01]} 5. bxc3 {[%clk 0:02:51]}  dxe4 {[%clk 0:03:01]} 6. Qg4 {[%clk 0:02:51]}  Nf6 {[%clk 0:03:02]} 7. Qxg7 {[%clk 0:02:51]}  Rg8 {[%clk 0:03:03]} 8. Qh6 {[%clk 0:02:51]}  Rg6 {[%clk 0:03:04]} 9. Qd2 {[%clk 0:02:50]}  b6 {[%clk 0:03:04]} 10. Ne2 {[%clk 0:02:50]}  Ba6 {[%clk 0:03:04]} 11. Nf4 {[%clk 0:02:48]}  Rg8 {[%clk 0:02:53]} 12. Bxa6 {[%clk 0:02:47]}  Nxa6 {[%clk 0:02:54]} 13. O-O {[%clk 0:02:46]}  Nd5 {[%clk 0:02:46]} 14. c4 {[%clk 0:02:44]}  Nxf4 {[%clk 0:02:37]} 15. Qxf4 {[%clk 0:02:44]}  Qxd4 {[%clk 0:02:33]} 16. Be3 {[%clk 0:02:43]}  Qg7 {[%clk 0:02:32]} 17. Qxe4 {[%clk 0:02:41]}  O-O-O {[%clk 0:02:20]} 18. Qa8+ {[%clk 0:02:24]}  Nb8 {[%clk 0:02:20]} 19. g3 {[%clk 0:02:17]}  a5 {[%clk 0:02:12]} 20. c5 {[%clk 0:02:15]}  Qe5 {[%clk 0:01:27]} 21. c6 {[%clk 0:02:04]} 1-0

[Event "November 21 Late 2023"]
[Site "https://www.chess.com"]
[Date "2023.11.21"]
[Round "5"]
[White "Lutz, Igor Oscar"]
[Black "Mazzilli, Piero"]
[Result "1-0"]
[Board "138"]
[TimeControl "180+1"]
[WhiteFideId "2110806"]
[BlackFideId "807087"]
[WhiteElo "1749"]
[BlackElo "2358"]
[WhiteTeam "BRA"]
[BlackTeam "ITA"]
[WhiteClock "0:00:07"]
[BlackClock "0:00:13"]

1. d4 {[%clk 0:02:54]}  f5 {[%clk 0:02:59]} 2. c4 {[%clk 0:02:54]}  Nf6 {[%clk 0:02:58]} 3. Nf3 {[%clk 0:02:54]}  g6 {[%clk 0:02:58]} 4. g3 {[%clk 0:02:55]}  Bg7 {[%clk 0:02:59]} 5. Bg2 {[%clk 0:02:54]}  O-O {[%clk 0:02:59]} 6. O-O {[%clk 0:02:54]}  d6 {[%clk 0:03:00]} 7. b3 {[%clk 0:02:54]}  Nc6 {[%clk 0:03:00]} 8. d5 {[%clk 0:02:54]}  Ne5 {[%clk 0:03:00]} 9. Nxe5 {[%clk 0:02:52]}  dxe5 {[%clk 0:03:01]} 10. Bb2 {[%clk 0:02:53]}  e4 {[%clk 0:03:01]} 11. Nd2 {[%clk 0:02:34]}  e6 {[%clk 0:03:00]} 12. dxe6 {[%clk 0:02:25]}  Bxe6 {[%clk 0:03:01]} 13. Qc2 {[%clk 0:02:24]}  Qe7 {[%clk 0:02:51]} 14. Rad1 {[%clk 0:02:16]}  Rad8 {[%clk 0:02:21]} 15. Rfe1 {[%clk 0:02:05]}  Rd7 {[%clk 0:01:55]} 16. Nf1 {[%clk 0:02:03]}  Rfd8 {[%clk 0:01:55]} 17. Ne3 {[%clk 0:01:49]}  Bh6 {[%clk 0:01:51]} 18. Rxd7 {[%clk 0:01:29]}  Rxd7 {[%clk 0:01:52]} 19. Qc3 {[%clk 0:01:25]}  Bg7 {[%clk 0:01:45]} 20. Rd1 {[%clk 0:01:10]}  Rxd1+ {[%clk 0:01:31]} 21. Nxd1 {[%clk 0:01:11]}  Qd6 {[%clk 0:01:26]} 22. Qc2 {[%clk 0:01:05]}  Bf7 {[%clk 0:01:10]} 23. Ne3 {[%clk 0:00:58]}  Kf8 {[%clk 0:01:09]} 24. Qc3 {[%clk 0:00:50]}  a6 {[%clk 0:00:58]} 25. Nd5 {[%clk 0:00:45]}  Bxd5 {[%clk 0:00:53]} 26. cxd5 {[%clk 0:00:44]}  Ne8 {[%clk 0:00:54]} 27. Qc2 {[%clk 0:00:38]}  Qxd5 {[%clk 0:00:52]} 28. Bxg7+ {[%clk 0:00:37]}  Kxg7 {[%clk 0:00:51]} 29. Qc3+ {[%clk 0:00:37]}  Kg8 {[%clk 0:00:51]} 30. Qb4 {[%clk 0:00:34]}  Nd6 {[%clk 0:00:39]} 31. e3 {[%clk 0:00:30]}  Nf7 {[%clk 0:00:26]} 32. Bf1 {[%clk 0:00:27]}  Ne5 {[%clk 0:00:26]} 33. Qe7 {[%clk 0:00:16]}  Qd6 {[%clk 0:00:26]} 34. Qe8+ {[%clk 0:00:16]}  Kg7 {[%clk 0:00:26]} 35. Be2 {[%clk 0:00:13]}  h5 {[%clk 0:00:25]} 36. h4 {[%clk 0:00:13]}  c5 {[%clk 0:00:24]} 37. Qa4 {[%clk 0:00:09]}  b5 {[%clk 0:00:23]} 38. Qa5 {[%clk 0:00:08]}  c4 {[%clk 0:00:21]} 39. bxc4 {[%clk 0:00:08]}  bxc4 {[%clk 0:00:22]} 40. Qc3 {[%clk 0:00:08]}  Kf7 {[%clk 0:00:21]} 41. Bxc4+ {[%clk 0:00:07]}  Ke7 {[%clk 0:00:20]} 42. Bf1 {[%clk 0:00:05]}  Nf3+ {[%clk 0:00:19]} 43. Kg2 {[%clk 0:00:05]}  Ne5 {[%clk 0:00:18]} 44. Qb3 {[%clk 0:00:04]}  Kf8 {[%clk 0:00:17]} 45. Qb7 {[%clk 0:00:04]}  Kg8 {[%clk 0:00:16]} 46. Qxa6 {[%clk 0:00:04]}  Qxa6 {[%clk 0:00:15]} 47. Bxa6 {[%clk 0:00:05]}  Kf8 {[%clk 0:00:15]} 48. a4 {[%clk 0:00:05]}  Ke7 {[%clk 0:00:16]} 49. Bb5 {[%clk 0:00:06]}  Kd6 {[%clk 0:00:16]} 50. Kf1 {[%clk 0:00:06]}  Kc5 {[%clk 0:00:17]} 51. Ke2 {[%clk 0:00:07]}  Nf3 {[%clk 0:00:16]} 52. Be8 {[%clk 0:00:07]}  Ne5 {[%clk 0:00:16]} 53. Kd2 {[%clk 0:00:08]}  Kb4 {[%clk 0:00:16]} 54. Bb5 {[%clk 0:00:07]}  Ng4 {[%clk 0:00:16]} 55. Be8 {[%clk 0:00:08]}  Ne5 {[%clk 0:00:14]} 56. Ke2 {[%clk 0:00:08]}  Ka5 {[%clk 0:00:14]} 57. Bb5 {[%clk 0:00:07]}  Kb6 {[%clk 0:00:14]} 58. Be8 {[%clk 0:00:07]}  Kc5 {[%clk 0:00:13]} 59. Kd2 {[%clk 0:00:08]}  Ng4 {[%clk 0:00:13]} 60. Bxg6 {[%clk 0:00:07]}  Nxf2 {[%clk 0:00:13]} 61. Bxh5 {[%clk 0:00:07]}  Nh1 {[%clk 0:00:13]} 62. g4 {[%clk 0:00:06]}  fxg4 {[%clk 0:00:11]} 63. Bxg4 {[%clk 0:00:07]}  Nf2 {[%clk 0:00:10]} 64. Bf5 {[%clk 0:00:06]}  Kd5 {[%clk 0:00:10]} 65. h5 {[%clk 0:00:06]}  Ke5 {[%clk 0:00:10]} 66. Bg6 {[%clk 0:00:06]}  Ng4 {[%clk 0:00:09]} 67. a5 {[%clk 0:00:06]}  Nf6 {[%clk 0:00:09]} 68. a6 {[%clk 0:00:06]}  Nd7 {[%clk 0:00:09]} 69. a7 {[%clk 0:00:06]}  Nb6 {[%clk 0:00:10]} 70. Kc3 {[%clk 0:00:06]}  Kf6 {[%clk 0:00:10]} 71. Kd4 {[%clk 0:00:05]}  Kg5 {[%clk 0:00:10]} 72. Kxe4 {[%clk 0:00:05]}  Kh6 {[%clk 0:00:10]} 73. Kd4 {[%clk 0:00:06]}  Na8 {[%clk 0:00:11]} 74. Kc5 {[%clk 0:00:06]}  Nc7 {[%clk 0:00:12]} 75. Kb6 {[%clk 0:00:06]}  Na8+ {[%clk 0:00:13]} 76. Kb7 {[%clk 0:00:06]}  Kg7 {[%clk 0:00:13]} 77. Kxa8 {[%clk 0:00:07]} 1-0

[Event "November 21 Late 2023"]
[Site "https://www.chess.com"]
[Date "2023.11.21"]
[Round "5"]
[White "Castillo Pena, Patricia Evarista"]
[Black "Gerbelli Neto, Eduardo"]
[Result "1-0"]
[Board "141"]
[TimeControl "180+1"]
[WhiteFideId "6412106"]
[BlackFideId "2103281"]
[WhiteElo "1861"]
[BlackElo "2178"]
[WhiteTeam "DOM"]
[BlackTeam "BRA"]
[WhiteClock "0:00:39"]
[BlackClock "0:00:04"]

1. d4 {[%clk 0:03:00]}  d5 {[%clk 0:02:59]} 2. Nf3 {[%clk 0:02:52]}  Nf6 {[%clk 0:02:58]} 3. e3 {[%clk 0:02:50]}  e6 {[%clk 0:02:52]} 4. Bd3 {[%clk 0:02:49]}  c5 {[%clk 0:02:51]} 5. b3 {[%clk 0:02:40]}  Nc6 {[%clk 0:02:51]} 6. Bb2 {[%clk 0:02:33]}  Be7 {[%clk 0:02:46]} 7. O-O {[%clk 0:02:32]}  O-O {[%clk 0:02:44]} 8. Nbd2 {[%clk 0:02:30]}  cxd4 {[%clk 0:02:37]} 9. exd4 {[%clk 0:02:29]}  Qc7 {[%clk 0:02:26]} 10. a3 {[%clk 0:02:27]}  Bd6 {[%clk 0:02:05]} 11. Re1 {[%clk 0:02:24]}  Ne7 {[%clk 0:02:03]} 12. c4 {[%clk 0:02:20]}  b6 {[%clk 0:01:56]} 13. Rc1 {[%clk 0:02:17]}  Qd8 {[%clk 0:01:52]} 14. Ne5 {[%clk 0:02:15]}  Bb7 {[%clk 0:01:48]} 15. Qe2 {[%clk 0:02:10]}  Ng6 {[%clk 0:01:39]} 16. g3 {[%clk 0:02:00]}  Rc8 {[%clk 0:01:34]} 17. h4 {[%clk 0:01:51]}  Re8 {[%clk 0:01:02]} 18. Qe3 {[%clk 0:01:22]}  Nxe5 {[%clk 0:00:43]} 19. dxe5 {[%clk 0:01:21]}  Bc5 {[%clk 0:00:43]} 20. Bd4 {[%clk 0:00:49]}  Nd7 {[%clk 0:00:38]} 21. b4 {[%clk 0:00:45]}  Bxd4 {[%clk 0:00:36]} 22. Qxd4 {[%clk 0:00:46]}  dxc4 {[%clk 0:00:31]} 23. Nxc4 {[%clk 0:00:45]}  Rf8 {[%clk 0:00:20]} 24. Nd6 {[%clk 0:00:44]}  Rc7 {[%clk 0:00:20]} 25. Nxb7 {[%clk 0:00:39]}  Rxb7 {[%clk 0:00:04]} 26. Qe4 {[%clk 0:00:39]} 1-0

[Event "November 21 Late 2023"]
[Site "https://www.chess.com"]
[Date "2023.11.21"]
[Round "5"]
[White "Tsiolakidis, Anastasios"]
[Black "Schmakel, Sam"]
[Result "0-1"]
[Board "144"]
[TimeControl "180+1"]
[WhiteFideId "4201477"]
[BlackFideId "2039311"]
[WhiteElo "2251"]
[BlackElo "2356"]
[WhiteTeam "GRE"]
[BlackTeam "USA"]
[WhiteClock "0:00:41"]
[BlackClock "0:00:42"]

1. e4 {[%clk 0:03:00]}  e5 {[%clk 0:02:53]} 2. f4 {[%clk 0:03:00]}  Bc5 {[%clk 0:02:48]} 3. Nf3 {[%clk 0:03:00]}  d6 {[%clk 0:02:49]} 4. c3 {[%clk 0:03:00]}  Bb6 {[%clk 0:02:43]} 5. d4 {[%clk 0:02:58]}  Nf6 {[%clk 0:02:32]} 6. dxe5 {[%clk 0:02:56]}  Nxe4 {[%clk 0:02:32]} 7. Bc4 {[%clk 0:02:54]}  O-O {[%clk 0:02:15]} 8. Qe2 {[%clk 0:02:53]}  d5 {[%clk 0:02:09]} 9. Bd3 {[%clk 0:02:45]}  f5 {[%clk 0:02:05]} 10. exf6 {[%clk 0:02:43]}  Qxf6 {[%clk 0:02:03]} 11. Rf1 {[%clk 0:02:27]}  Nc6 {[%clk 0:02:00]} 12. Nbd2 {[%clk 0:02:19]}  Bf5 {[%clk 0:01:55]} 13. Nxe4 {[%clk 0:02:13]}  dxe4 {[%clk 0:01:54]} 14. Bc4+ {[%clk 0:02:13]}  Kh8 {[%clk 0:01:55]} 15. Ng5 {[%clk 0:02:12]}  e3 {[%clk 0:01:52]} 16. g4 {[%clk 0:02:03]}  Bg6 {[%clk 0:01:46]} 17. Rf3 {[%clk 0:02:02]}  Rae8 {[%clk 0:01:41]} 18. h4 {[%clk 0:01:54]}  h6 {[%clk 0:01:32]} 19. Bxe3 {[%clk 0:01:45]}  Bxe3 {[%clk 0:01:29]} 20. Rxe3 {[%clk 0:01:43]}  Rxe3 {[%clk 0:01:29]} 21. Qxe3 {[%clk 0:01:42]}  Re8 {[%clk 0:01:29]} 22. Ne6 {[%clk 0:01:37]}  Na5 {[%clk 0:01:19]} 23. Bd5 {[%clk 0:01:30]}  c6 {[%clk 0:01:19]} 24. g5 {[%clk 0:01:26]}  Qf5 {[%clk 0:01:15]} 25. Qd4 {[%clk 0:01:23]}  Qf7 {[%clk 0:01:03]} 26. O-O-O {[%clk 0:01:11]}  cxd5 {[%clk 0:01:02]} 27. f5 {[%clk 0:01:07]}  Bxf5 {[%clk 0:00:59]} 28. Nf4 {[%clk 0:00:56]}  Nc6 {[%clk 0:00:58]} 29. Qc5 {[%clk 0:00:53]}  Bg4 {[%clk 0:00:55]} 30. Rf1 {[%clk 0:00:51]}  Ne5 {[%clk 0:00:43]} 31. Qxa7 {[%clk 0:00:46]}  Nd3+ {[%clk 0:00:42]} 32. Nxd3 {[%clk 0:00:42]}  Qxf1+ {[%clk 0:00:42]} 33. Kc2 {[%clk 0:00:41]}  Qd1# {[%clk 0:00:42]} 0-1

[Event "November 21 Late 2023"]
[Site "https://www.chess.com"]
[Date "2023.11.21"]
[Round "5"]
[White "Souza, Gustavo Horokoski De"]
[Black "Herman, Matthew"]
[Result "0-1"]
[Board "145"]
[TimeControl "180+1"]
[WhiteFideId "2146584"]
[BlackFideId "2028964"]
[WhiteElo "1824"]
[BlackElo "2368"]
[WhiteTeam "BRA"]
[BlackTeam "USA"]
[WhiteClock "0:00:19"]
[BlackClock "0:00:22"]

1. c4 {[%clk 0:03:00]}  Nf6 {[%clk 0:02:59]} 2. Nc3 {[%clk 0:02:52]}  g6 {[%clk 0:02:59]} 3. d4 {[%clk 0:02:50]}  d6 {[%clk 0:03:00]} 4. e4 {[%clk 0:02:50]}  Bg7 {[%clk 0:03:00]} 5. Be2 {[%clk 0:02:50]}  O-O {[%clk 0:03:01]} 6. Bg5 {[%clk 0:02:51]}  c5 {[%clk 0:02:59]} 7. d5 {[%clk 0:02:50]}  b5 {[%clk 0:02:53]} 8. cxb5 {[%clk 0:02:48]}  a6 {[%clk 0:02:53]} 9. bxa6 {[%clk 0:02:48]}  Bxa6 {[%clk 0:02:53]} 10. Nf3 {[%clk 0:02:48]}  Nbd7 {[%clk 0:02:41]} 11. O-O {[%clk 0:02:39]}  Qa5 {[%clk 0:02:41]} 12. a4 {[%clk 0:02:35]}  Qb4 {[%clk 0:02:38]} 13. Bd2 {[%clk 0:02:18]}  Nxe4 {[%clk 0:02:23]} 14. Nxe4 {[%clk 0:02:10]}  Qxe4 {[%clk 0:02:24]} 15. Bxa6 {[%clk 0:02:09]}  Rxa6 {[%clk 0:02:24]} 16. Re1 {[%clk 0:02:10]}  Qxd5 {[%clk 0:02:25]} 17. Rxe7 {[%clk 0:02:08]}  Nb6 {[%clk 0:01:37]} 18. a5 {[%clk 0:02:06]}  Bxb2 {[%clk 0:01:18]} 19. Rb1 {[%clk 0:01:05]}  Nc4 {[%clk 0:01:18]} 20. Qe2 {[%clk 0:00:56]}  Bg7 {[%clk 0:00:42]} 21. h4 {[%clk 0:00:40]}  Raa8 {[%clk 0:00:38]} 22. Rbb7 {[%clk 0:00:29]}  Nxd2 {[%clk 0:00:24]} 23. Nxd2 {[%clk 0:00:26]}  Rxa5 {[%clk 0:00:25]} 24. h5 {[%clk 0:00:19]}  Ra1+ {[%clk 0:00:24]} 25. Kh2 {[%clk 0:00:19]}  Be5+ {[%clk 0:00:22]} 26. g3 {[%clk 0:00:19]}  Rh1# {[%clk 0:00:22]} 0-1

[Event "November 21 Late 2023"]
[Site "https://www.chess.com"]
[Date "2023.11.21"]
[Round "5"]
[White "Lopez, Nelson M, Ii"]
[Black "Oliveira, Tiago Batista"]
[Result "1-0"]
[Board "149"]
[TimeControl "180+1"]
[WhiteFideId "2027895"]
[BlackFideId "2108291"]
[WhiteElo "2268"]
[BlackElo "1962"]
[WhiteTeam "USA"]
[BlackTeam "BRA"]
[WhiteClock "0:00:08"]
[BlackClock "0:00:00"]

1. e4 {[%clk 0:03:00]}  c5 {[%clk 0:01:30]} 2. Nf3 {[%clk 0:02:59]}  Nc6 {[%clk 0:01:29]} 3. Bb5 {[%clk 0:02:58]}  Nf6 {[%clk 0:01:26]} 4. e5 {[%clk 0:02:53]}  Nd5 {[%clk 0:01:25]} 5. O-O {[%clk 0:02:50]}  a6 {[%clk 0:01:16]} 6. Bxc6 {[%clk 0:02:48]}  bxc6 {[%clk 0:01:17]} 7. c4 {[%clk 0:02:43]}  Nc7 {[%clk 0:01:14]} 8. d4 {[%clk 0:02:35]}  cxd4 {[%clk 0:01:12]} 9. Qxd4 {[%clk 0:02:32]}  Ne6 {[%clk 0:01:04]} 10. Qh4 {[%clk 0:02:25]}  Qb6 {[%clk 0:00:28]} 11. Nc3 {[%clk 0:02:17]}  Bb7 {[%clk 0:00:19]} 12. Be3 {[%clk 0:01:57]}  Qxb2 {[%clk 0:00:18]} 13. Rab1 {[%clk 0:01:56]}  Qxc3 {[%clk 0:00:17]} 14. Rxb7 {[%clk 0:01:57]}  g6 {[%clk 0:00:15]} 15. Rd1 {[%clk 0:01:44]}  Rd8 {[%clk 0:00:14]} 16. Nd4 {[%clk 0:01:07]}  Nxd4 {[%clk 0:00:09]} 17. Bxd4 {[%clk 0:01:08]}  Qxc4 {[%clk 0:00:08]} 18. g3 {[%clk 0:00:45]}  Bg7 {[%clk 0:00:07]} 19. e6 {[%clk 0:00:31]}  Bxd4 {[%clk 0:00:04]} 20. exd7+ {[%clk 0:00:16]}  Kf8 {[%clk 0:00:03]} 21. Rxd4 {[%clk 0:00:14]}  Qc1+ {[%clk 0:00:01]} 22. Kg2 {[%clk 0:00:15]}  Kg7 {[%clk 0:00:01]} 23. Qxe7 {[%clk 0:00:13]}  Rhf8 {[%clk 0:00:00]} 24. Rf4 {[%clk 0:00:08]} 1-0

[Event "November 21 Late 2023"]
[Site "https://www.chess.com"]
[Date "2023.11.21"]
[Round "5"]
[White "Blackwhite017"]
[Black "Golubenko, Valentina"]
[Result "1/2-1/2"]
[Board "150"]
[TimeControl "180+1"]
[BlackFideId "4501993"]
[WhiteElo "2031"]
[BlackElo "2126"]
[BlackTeam "CRO"]
[WhiteClock "0:00:07"]
[BlackClock "0:00:08"]

1. e4 {[%clk 0:03:00]}  e6 {[%clk 0:02:56]} 2. d3 {[%clk 0:03:00]}  d5 {[%clk 0:02:56]} 3. Nd2 {[%clk 0:03:01]}  g6 {[%clk 0:02:56]} 4. g3 {[%clk 0:03:00]}  Bg7 {[%clk 0:02:56]} 5. Bg2 {[%clk 0:03:01]}  Ne7 {[%clk 0:02:55]} 6. Ngf3 {[%clk 0:03:01]}  O-O {[%clk 0:02:55]} 7. O-O {[%clk 0:03:00]}  c5 {[%clk 0:02:55]} 8. c3 {[%clk 0:02:58]}  Nbc6 {[%clk 0:02:54]} 9. Qc2 {[%clk 0:02:54]}  b6 {[%clk 0:02:50]} 10. Rd1 {[%clk 0:02:49]}  Ba6 {[%clk 0:02:48]} 11. Nf1 {[%clk 0:02:37]}  Rc8 {[%clk 0:02:46]} 12. h4 {[%clk 0:02:27]}  h5 {[%clk 0:02:36]} 13. a3 {[%clk 0:01:55]}  c4 {[%clk 0:02:28]} 14. d4 {[%clk 0:01:51]}  dxe4 {[%clk 0:02:28]} 15. Qxe4 {[%clk 0:01:50]}  Nd5 {[%clk 0:02:13]} 16. Bg5 {[%clk 0:01:36]}  Qe8 {[%clk 0:01:59]} 17. N3d2 {[%clk 0:01:13]}  Na5 {[%clk 0:01:53]} 18. Qc2 {[%clk 0:00:48]}  Bb7 {[%clk 0:01:44]} 19. Re1 {[%clk 0:00:47]}  Qd7 {[%clk 0:01:43]} 20. Re2 {[%clk 0:00:40]}  Nc6 {[%clk 0:01:10]} 21. Rae1 {[%clk 0:00:34]}  b5 {[%clk 0:00:54]} 22. Bh3 {[%clk 0:00:34]}  Rfe8 {[%clk 0:00:47]} 23. Ne3 {[%clk 0:00:34]}  Nxe3 {[%clk 0:00:41]} 24. Rxe3 {[%clk 0:00:34]}  Na5 {[%clk 0:00:40]} 25. Ne4 {[%clk 0:00:29]}  Qd5 {[%clk 0:00:36]} 26. f3 {[%clk 0:00:23]}  f5 {[%clk 0:00:34]} 27. Nf6+ {[%clk 0:00:23]}  Bxf6 {[%clk 0:00:34]} 28. Bxf6 {[%clk 0:00:23]}  Nb3 {[%clk 0:00:28]} 29. Bg2 {[%clk 0:00:23]}  Rc7 {[%clk 0:00:24]} 30. R3e2 {[%clk 0:00:23]}  Qd7 {[%clk 0:00:20]} 31. f4 {[%clk 0:00:21]}  Bxg2 {[%clk 0:00:19]} 32. Rxg2 {[%clk 0:00:21]}  a5 {[%clk 0:00:19]} 33. Rge2 {[%clk 0:00:16]}  b4 {[%clk 0:00:19]} 34. axb4 {[%clk 0:00:16]}  axb4 {[%clk 0:00:19]} 35. Re5 {[%clk 0:00:15]}  bxc3 {[%clk 0:00:19]} 36. bxc3 {[%clk 0:00:15]}  Rc6 {[%clk 0:00:19]} 37. Qa2 {[%clk 0:00:15]}  Nxd4 {[%clk 0:00:17]} 38. cxd4 {[%clk 0:00:14]}  Qxd4+ {[%clk 0:00:17]} 39. Qf2 {[%clk 0:00:14]}  Qd3 {[%clk 0:00:16]} 40. Qa7 {[%clk 0:00:10]}  Qxg3+ {[%clk 0:00:07]} 41. Kf1 {[%clk 0:00:07]}  Qf3+ {[%clk 0:00:07]} 42. Kg1 {[%clk 0:00:07]}  Qg3+ {[%clk 0:00:07]} 43. Kh1 {[%clk 0:00:07]}  Qh3+ {[%clk 0:00:08]} 44. Kg1 {[%clk 0:00:07]}  Qg3+ {[%clk 0:00:08]} 1/2-1/2